bitfinex/quotes_ETHUSD_20250508
["timestamp","ask_amount","ask_price","bid_price","bid_amount"]
[1746675687607,5.34190444,1872.0,1871.7,0.98844685]
[1746675687803,5.34221688,1871.9,1871.7,0.11562333]
[1746675688007,5.34221688,1871.9,1871.6,3.21617]
[1746675688207,5.34221688,1871.9,1871.7,0.12381126]
[1746675688435,5.34221688,1871.9,1871.6,9.29617]
[1746675688731,5.34221688,1871.9,1871.7,0.12302856]
[1746675689122,5.34245111,1871.8,1871.6,8.74617]
[1746675689319,5.34273654,1871.7,1871.6,6.08]
[1746675689525,5.34273654,1871.7,1871.5,20.0307]
[1746675689843,0.8202,1872.3,1871.5,20.0307]
[1746675690052,5.34237116,1871.9,1871.5,20.0307]
[1746675690209,5.34247589,1871.8,1871.5,20.0307]
[1746675690547,5.34237116,1871.9,1871.5,29.43370006]
[1746675690745,5.34154466,1872.2,1871.8,0.55]
[1746675690921,5.34154466,1872.2,1871.9,0.809]
[1746675692018,5.34051495,1872.5,1871.9,0.809]
[1746675692245,5.3416112,1872.1,1871.9,0.809]
[1746675692453,0.7912,1872.6,1871.9,0.809]
[1746675692675,0.4348999,1873.2,1872.6,3.0]
[1746675692958,0.4348999,1873.2,1872.7,6.9579]
[1746675693157,5.77350038,1873.2,1872.7,12.35104653]
[1746675693320,5.33895246,1873.1,1872.8,1.23510465]
[1746675693506,5.33905257,1873.0,1872.7,6.9579]
[1746675694022,5.33890994,1873.1,1872.7,6.9579]
[1746675694656,5.3398652,1872.8,1872.5,6.143]
[1746675694859,5.33931336,1872.9,1872.4,0.8237]
[1746675695026,5.33972846,1872.8,1872.4,6.21781961]
[1746675695346,5.34008337,1872.7,1872.3,6.143]
[1746675695544,5.34022488,1872.6,1872.2,6.9667]
[1746675695751,5.34005397,1872.7,1872.2,12.3080039]
[1746675696050,5.33975635,1872.8,1872.3,10.73515702]
[1746675696255,5.33975635,1872.8,1872.4,5.34070739]
[1746675696455,5.33945243,1872.9,1872.4,5.34070739]
[1746675696650,5.77337703,1873.2,1872.5,0.7992]
[1746675696651,1.2555999,1873.2,1872.5,0.7992]
[1746675696955,0.4348999,1873.2,1873.1,8.7741842]
[1746675697247,0.4348999,1873.2,1873.1,6.143]
[1746675697675,0.4348999,1873.2,1873.1,12.6513811]
[1746675697838,0.4348999,1873.2,1873.1,13.4505811]
[1746675698039,0.4348999,1873.2,1873.1,16.4505811]
[1746675698361,0.4348999,1873.2,1873.1,1.41883785]
[1746675698563,0.4348999,1873.2,1873.1,12.28094325]
[1746675698767,0.4348999,1873.2,1873.1,12.83094325]
[1746675699137,0.4348999,1873.2,1873.1,19.2663842]
[1746675699675,0.4348999,1873.2,1873.1,15.83094325]
[1746675700260,0.4348999,1873.2,1873.1,32.10843536]
[1746675700577,0.4348999,1873.2,1873.1,19.9931738]
[1746675700944,0.4348999,1873.2,1873.1,19.9921738]
[1746675701196,0.2,1873.4,1873.3,8.33817327]
[1746675701376,0.2,1873.4,1873.3,9.70937327]
[1746675701746,0.2,1873.4,1873.3,9.82686538]
[1746675701971,0.2,1873.4,1873.3,11.98693395]
[1746675702542,0.2,1873.4,1873.3,18.12893395]
[1746675702966,0.125,1873.7,1873.6,5.88731853]
[1746675703179,0.005,1874.3,1873.9,5.33617939]
[1746675703380,0.005,1874.3,1874.2,5.33560986]
[1746675703566,8.73584752,1875.4,1874.2,1.30276099]
[1746675703884,5.33504151,1874.4,1874.2,7.01394036]
[1746675704080,5.33532518,1874.3,1874.2,0.10474036]
[1746675704239,5.3351638,1874.4,1874.0,0.05335646]
[1746675704563,5.33461916,1874.6,1874.1,0.10474036]
[1746675704972,5.33500866,1874.5,1874.1,6.24474036]
[1746675705172,0.005,2064.0,1874.1,6.24474036]
[1746675705173,5.33020627,1876.1,1874.3,5.33532518]
[1746675705371,5.33372813,1874.9,1874.4,5.33499663]
[1746675705587,5.33372813,1874.9,1874.4,5.38832615]
[1746675705788,0.4136111,1875.1,1874.5,0.91294036]
[1746675705997,0.16814617,1876.7,1876.3,0.8082]
[1746675706215,0.16814617,1876.7,1876.3,7.4962]
[1746675706352,0.16814617,1876.7,1876.4,0.05328402]
[1746675706703,5.4967942,1876.7,1876.3,0.8082]
[1746675706848,5.3290127,1876.6,1876.3,0.8082]
[1746675707054,5.32896657,1876.6,1876.3,0.8082]
[1746675707306,5.32896657,1876.6,1876.1,5.33013129]
[1746675707307,0.16814617,1876.7,1876.0,6.688]
[1746675707488,0.16814617,1876.7,1875.9,0.8259]
[1746675707490,5.49669548,1876.7,1875.9,0.8259]
[1746675707654,5.32907007,1876.5,1875.9,0.8259]
[1746675707983,0.16814617,1876.7,1875.9,0.8259]
[1746675708185,0.16814617,1876.7,1876.0,7.503]
[1746675708396,0.7505,1876.5,1875.6,0.8259]
[1746675708579,6.07959901,1876.5,1875.6,0.8259]
[1746675708798,5.33093702,1875.9,1875.6,0.8259]
[1746675708997,0.6079599,1876.4,1875.6,1.23531933]
[1746675709170,12.70966183,1876.9,1876.0,5.33030758]
[1746675709171,0.05928487,1876.7,1876.0,5.33030758]
[1746675709373,0.05928487,1876.7,1876.0,3.55]
[1746675709628,0.05928487,1876.7,1876.4,5.32934461]
[1746675709910,0.05928487,1876.7,1876.5,0.7693]
[1746675710095,5.38780822,1876.7,1876.5,0.7693]
[1746675710413,5.32907007,1876.5,1876.1,0.7693]
[1746675710716,0.53878082,1876.6,1876.2,0.0532928]
[1746675710910,0.05928487,1876.7,1876.3,0.55]
[1746675711079,0.05928487,1876.7,1876.3,12.82956396]
[1746675711280,0.05928487,1876.7,1876.3,6.95]
[1746675711508,0.05928487,1876.7,1876.4,0.05328598]
[1746675711709,0.05928487,1876.7,1876.3,6.95]
[1746675711918,0.05928487,1876.7,1876.4,0.60328375]
[1746675712100,0.05928487,1876.7,1876.6,6.6308861]
[1746675712300,0.05928487,1876.7,1876.6,8.2491]
[1746675712614,0.05928487,1876.7,1876.2,0.7521]
[1746675712913,0.05928487,1876.7,1876.3,0.55]
[1746675713214,5.38787786,1876.7,1876.4,0.05328337]
[1746675713386,5.3878269,1876.7,1876.2,13.02885197]
[1746675713585,5.3878269,1876.7,1876.2,0.7521]
[1746675713787,5.32992218,1876.2,1876.1,6.947]
[1746675713989,0.05928487,1876.7,1876.1,6.947]
[1746675713990,5.32971541,1876.3,1876.1,6.947]
[1746675714190,5.32992218,1876.2,1876.1,6.947]
[1746675714376,0.53297154,1876.3,1875.9,0.7521]
[1746675714605,5.33009548,1876.2,1875.9,0.7521]
[1746675714790,5.32958501,1876.4,1876.0,0.05329851]
[1746675714994,5.32964964,1876.3,1876.0,0.05329851]
[1746675715310,5.38782144,1876.7,1875.9,0.7521]
[1746675715512,5.3287861,1876.6,1875.7,6.947]
[1746675715721,5.33061639,1876.0,1875.7,6.947]
[1746675715882,5.33079618,1875.9,1875.7,6.947]
[1746675716082,5.3306291,1876.0,1875.7,6.947]
[1746675716384,5.33064534,1876.0,1875.7,6.947]
[1746675716582,5.33046048,1876.1,1875.7,6.947]
[1746675716777,5.86194902,1876.5,1875.9,5.33054949]
[1746675716976,5.32966973,1876.3,1875.8,12.27690284]
[1746675717177,5.32966973,1876.3,1875.9,0.05329625]
[1746675717798,5.32966973,1876.3,1875.9,12.33005686]
[1746675717998,5.32949354,1876.4,1875.9,12.27676061]
[1746675718197,5.32949354,1876.4,1876.0,0.053296]
[1746675718632,5.32949354,1876.4,1876.0,0.04896236]
[1746675718810,0.58623721,1876.4,1875.9,12.27563827]
[1746675719017,5.91583173,1876.4,1876.0,0.053296]
[1746675719216,5.32948443,1876.4,1875.9,6.945]
[1746675719524,5.32948285,1876.4,1876.0,5.88048265]
[1746675719828,0.05928487,1876.7,1876.1,0.7727]
[1746675719992,5.32983488,1876.3,1875.8,5.33085944]
[1746675720192,5.33007076,1876.2,1875.7,6.63425677]
[1746675720387,0.53298349,1876.3,1875.8,5.33100495]
[1746675720593,5.32948055,1876.4,1875.9,5.38404928]
[1746675720811,5.38791198,1876.7,1876.1,0.55]
[1746675721028,0.05928487,1876.7,1876.3,0.55]
[1746675721324,0.05928487,1876.7,1876.3,5.32942293]
[1746675721619,0.05928487,1876.7,1876.3,5.32942235]
[1746675721796,0.05928487,1876.7,1876.4,5.38247984]
[1746675721997,0.05928487,1876.7,1876.4,5.32933364]
[1746675722796,0.05928487,1876.7,1876.5,6.71165088]
[1746675723020,0.05928487,1876.7,1876.6,15.8227861]
[1746675723614,0.05928487,1876.7,1876.6,8.8787861]
[1746675723823,0.05928487,1876.7,1876.6,15.8227861]
[1746675724029,0.05928487,1876.7,1876.6,16.6020861]
[1746675724228,5.32509718,1877.9,1877.1,5.32713349]
[1746675724404,0.025,1878.0,1877.2,7.7419]
[1746675724606,5.32566237,1877.8,1877.3,6.943]
[1746675724808,5.32590841,1877.7,1877.4,0.05325939]
[1746675725005,0.025,1878.0,1876.9,3.0]
[1746675725006,5.32703783,1877.3,1876.9,7.7419]
[1746675725228,5.32623169,1877.5,1876.6,0.7989]
[1746675725430,5.32992218,1876.2,1876.1,0.27127918]
[1746675725839,6.09772218,1876.2,1876.1,0.27127918]
[1746675726242,0.27114645,1877.1,1876.2,0.7989]
[1746675726538,5.32980895,1876.3,1875.8,13.4768413]
[1746675726705,0.7678,1876.7,1875.8,13.4768413]
[1746675726706,5.32947498,1876.4,1875.8,8.1459]
[1746675726902,0.7678,1876.7,1875.8,8.1459]
[1746675727107,5.32895752,1876.6,1876.1,5.3300669]
[1746675727326,5.3296225,1876.4,1876.0,5.33048538]
[1746675727518,5.32920905,1876.5,1875.8,3.7989]
[1746675727715,5.32886836,1876.6,1876.0,5.33023976]
[1746675727916,5.32886836,1876.6,1876.1,5.33001218]
[1746675728117,0.8278,1877.1,1876.0,6.413492]
[1746675728321,6.15528926,1877.1,1876.6,5.32861874]
[1746675728533,5.32748926,1877.1,1876.6,6.14308614]
[1746675728831,5.32748926,1877.1,1876.7,0.05327896]
[1746675729033,1.0654597,1877.1,1876.7,0.05327896]
[1746675729206,5.32821824,1876.8,1876.5,7.348]
[1746675729641,5.32821824,1876.8,1876.5,7.40128435]
[1746675729831,5.32821824,1876.8,1876.5,7.348]
[1746675730033,5.3287344,1876.7,1876.5,7.348]
[1746675730233,5.3296613,1876.3,1876.0,8.1527]
[1746675730414,5.32946929,1876.4,1876.0,8.1527]
[1746675730931,5.3290097,1876.6,1876.1,0.05329508]
[1746675731134,5.32985457,1876.3,1876.0,7.347]
[1746675731450,5.86313853,1876.2,1876.0,7.347]
[1746675731647,5.33020627,1876.1,1876.0,7.347]
[1746675731947,5.32907007,1876.5,1875.8,0.05330262]
[1746675732145,5.32942252,1876.4,1875.7,8.1527]
[1746675732314,5.33037104,1876.1,1875.8,0.05330339]
[1746675732514,0.8068,1876.6,1875.7,8.1527]
[1746675732823,0.53287344,1876.7,1876.2,5.32978654]
[1746675732824,5.86150696,1876.7,1876.2,5.32978654]
[1746675733223,6.15051531,1876.8,1876.3,0.05329105]
[1746675733459,6.14962756,1877.1,1876.3,5.38278431]
[1746675733659,5.32839776,1876.8,1876.3,0.05329105]
[1746675733951,5.32879267,1876.6,1876.2,12.67679832]
[1746675734124,5.32866252,1876.7,1876.2,12.67679832]
[1746675734317,5.3276505,1877.0,1876.3,5.38268854]
[1746675734540,0.53259084,1877.6,1876.5,1.3244]
[1746675734820,0.8222,1877.7,1877.0,6.10193923]
[1746675735099,5.32626073,1877.5,1877.0,8.1214]
[1746675735366,5.32720993,1877.2,1877.0,8.1214]
[1746675735658,0.53272099,1877.1,1877.0,7.347]
[1746675735957,0.8222,1877.7,1877.0,12.67454128]
[1746675735958,5.32664151,1877.4,1877.0,12.67454128]
[1746675736160,5.32720495,1877.2,1877.0,7.347]
[1746675736518,5.32673931,1877.4,1877.0,7.347]
[1746675736759,5.32683872,1877.3,1877.0,7.347]
[1746675736930,5.32683872,1877.3,1876.9,7.346]
[1746675737253,4.32683872,1877.3,1876.9,7.346]
[1746675737455,5.32653723,1877.4,1877.0,5.32749173]
[1746675737619,5.32653723,1877.4,1877.0,5.38076243]
[1746675737955,5.32684026,1877.3,1877.0,0.0532707]
[1746675738162,5.32666042,1877.4,1877.0,5.32759998]
[1746675738492,5.32605592,1877.6,1877.1,5.32712458]
[1746675738770,5.32610067,1877.6,1877.2,0.8315]
[1746675738923,4.32610067,1877.6,1877.2,6.1584503]
[1746675739255,5.32556062,1877.8,1877.3,5.32669073]
[1746675739256,5.32561971,1877.8,1877.3,5.32669073]
[1746675739420,5.85813226,1877.8,1877.3,5.32668617]
[1746675739616,5.325675,1877.7,1877.3,5.32668617]
[1746675739845,5.32524152,1877.9,1877.4,7.345]
[1746675740041,5.32524152,1877.9,1877.4,12.72453646]
[1746675740242,5.34990494,1878.0,1877.9,5.32509718]
[1746675740243,0.025,1878.0,1877.9,5.32509718]
[1746675740451,0.025,1878.0,1877.9,12.67009718]
[1746675740655,0.025,1878.0,1877.8,5.32538076]
[1746675740878,0.025,1878.0,1877.9,12.67009718]
[1746675741383,0.025,1878.0,1877.9,7.345]
[1746675741587,0.025,1878.0,1877.6,7.345]
[1746675741776,5.32625699,1877.5,1877.1,0.7754]
[1746675741948,5.32602619,1877.6,1877.1,13.44752652]
[1746675742149,0.025,1878.0,1877.1,9.46515265]
[1746675742349,5.32584844,1877.7,1877.2,5.32694683]
[1746675742552,5.32595117,1877.6,1877.1,2.52256806]
[1746675742781,0.025,1878.0,1877.4,0.7754]
[1746675742977,0.025,1878.0,1877.4,1.3254]
[1746675743293,5.32523246,1877.9,1877.5,7.344]
[1746675743591,5.32567791,1877.7,1877.4,0.7754]
[1746675743759,0.53502325,1877.9,1877.1,1.25115286]
[1746675743760,5.3264086,1877.5,1877.1,1.25115286]
[1746675743964,5.3264086,1877.5,1877.2,7.344]
[1746675744160,6.13798076,1877.8,1876.9,7.344]
[1746675744376,5.32707007,1877.3,1876.9,7.344]
[1746675744753,5.32707007,1877.3,1877.0,0.05327101]
[1746675744967,5.32683478,1877.3,1877.0,0.05327101]
[1746675745498,5.32714362,1877.2,1876.9,7.344]
[1746675745850,5.32663536,1877.4,1876.9,7.344]
[1746675745851,5.32691733,1877.3,1877.0,0.05327101]
[1746675746183,0.8126,1877.8,1876.8,19.198]
[1746675746382,5.32777936,1877.0,1876.7,0.7754]
[1746675746586,5.32809802,1876.9,1876.6,7.343]
[1746675746766,5.32769139,1877.0,1876.6,13.40605462]
[1746675746970,5.32817095,1876.9,1876.6,8.0773]
[1746675747167,5.32750516,1877.1,1876.6,13.40594572]
[1746675747489,5.32693386,1877.3,1876.8,6.08388186]
[1746675747687,0.53502325,1877.9,1877.0,0.55]
[1746675748000,7.5215849,1879.9,1877.8,5.32520968]
[1746675748001,6.08027295,1878.4,1877.8,5.32520968]
[1746675748287,5.32332986,1878.6,1877.9,0.55]
[1746675748493,5.32351627,1878.5,1877.8,13.25674495]
[1746675748658,5.32381338,1878.4,1877.8,18.58189705]
[1746675748854,5.32409492,1878.3,1877.8,12.66925849]
[1746675749067,5.32354218,1878.5,1877.9,5.37834034]
[1746675749676,5.3232269,1878.6,1877.9,5.87509718]
[1746675749887,5.3232269,1878.6,1877.9,5.92833812]
[1746675750108,6.57553511,1878.8,1877.9,5.92833812]
[1746675750272,5.32293867,1878.7,1877.9,5.87509718]
[1746675750472,0.4355736,1878.8,1877.9,15.02841316]
[1746675750665,0.4355736,1878.8,1877.9,14.97518214]
[1746675750868,0.4355736,1878.8,1878.7,5.32282961]
[1746675751066,0.4355736,1878.8,1878.6,6.13330546]
[1746675751067,0.4355736,1878.8,1878.6,6.13319333]
[1746675751269,0.4355736,1878.8,1878.7,5.87282961]
[1746675751477,0.4355736,1878.8,1878.7,7.0734319]
[1746675751706,0.4355736,1878.8,1878.7,10.0734319]
[1746675751867,0.4355736,1878.8,1878.7,7.12664448]
[1746675752073,0.4355736,1878.8,1878.7,7.0734319]
[1746675752287,5.06371523,1880.0,1879.1,6.6761]
[1746675752459,10.38300415,1880.0,1879.4,5.32063971]
[1746675752657,5.31962116,1879.9,1879.4,0.53206397]
[1746675752893,5.06371523,1880.0,1879.4,5.3208163]
[1746675753090,5.06371523,1880.0,1879.2,8.0181]
[1746675753293,5.06371523,1880.0,1879.9,5.99553188]
[1746675753496,5.06371523,1880.0,1879.9,7.342]
[1746675753680,5.06371523,1880.0,1879.2,0.7982]
[1746675753908,5.31944916,1879.9,1879.4,5.32072055]
[1746675754111,5.06371523,1880.0,1879.5,7.603]
[1746675754816,5.06371523,1880.0,1879.6,5.32010345]
[1746675755011,5.06371523,1880.0,1879.5,7.603]
[1746675755012,5.31958156,1879.9,1879.5,7.603]
[1746675755201,5.06371523,1880.0,1879.8,5.31957038]
[1746675755391,5.06371523,1880.0,1879.9,5.37261845]
[1746675755724,5.06371523,1880.0,1879.7,6.13125786]
[1746675755936,5.06371523,1880.0,1879.9,5.31943188]
[1746675756309,5.06371523,1880.0,1879.9,5.86943188]
[1746675756620,5.06371523,1880.0,1879.9,17.28383188]
[1746675756989,5.06371523,1880.0,1879.9,9.68083188]
[1746675757189,5.06371523,1880.0,1879.9,8.52079196]
[1746675757389,5.06371523,1880.0,1879.9,13.73183188]
[1746675757591,5.06371523,1880.0,1879.9,20.28183188]
[1746675758444,5.06371523,1880.0,1879.9,9.68083188]
[1746675758596,5.06371523,1880.0,1879.9,16.73183188]
[1746675758597,3.57210221,1880.0,1879.9,16.73183188]
[1746675758791,3.57210221,1880.0,1879.9,9.13083188]
[1746675759028,3.57210221,1880.0,1879.9,11.16579782]
[1746675759230,3.57210221,1880.0,1879.9,18.76679782]
[1746675759806,3.57210221,1880.0,1879.9,11.16579782]
[1746675760009,3.57210221,1880.0,1879.9,18.76679782]
[1746675760210,0.310339,1880.2,1880.1,12.62926601]
[1746675760541,0.310339,1880.2,1880.1,35.64509885]
[1746675760693,0.310339,1880.2,1880.1,32.64509885]
[1746675760894,0.310339,1880.2,1880.1,21.72623284]
[1746675761094,5.31603848,1881.1,1880.1,34.64392843]
[1746675761295,5.31603848,1881.1,1880.2,5.31833351]
[1746675761594,5.31762033,1880.6,1880.3,0.05317103]
[1746675761817,0.53160385,1881.0,1880.1,29.32523284]
[1746675761818,5.3173577,1880.7,1880.1,29.32523284]
[1746675762124,5.31701995,1880.8,1880.3,5.31826912]
[1746675762326,5.3163211,1881.0,1880.2,5.31846664]
[1746675762630,5.31731867,1880.7,1880.1,34.64396895]
[1746675762801,5.31728233,1880.7,1880.2,3.4643969]
[1746675763007,5.317491,1880.6,1880.2,3.4643969]
[1746675763196,5.3163211,1881.0,1880.1,19.9314]
[1746675763397,5.31887352,1880.1,1879.8,0.7973]
[1746675763622,5.31887352,1880.1,1879.8,7.597]
[1746675764034,5.32020795,1879.7,1879.4,26.764]
[1746675764221,5.31914205,1880.1,1879.4,26.764]
[1746675764422,5.31986864,1879.8,1879.5,0.05319919]
[1746675764623,0.8026,1879.8,1879.4,26.764]
[1746675765025,5.32033231,1879.6,1879.5,0.05319965]
[1746675765319,0.8026,1879.1,1878.4,19.167]
[1746675765522,5.32197977,1879.0,1878.5,5.37647861]
[1746675765846,5.32226752,1878.9,1878.6,0.53764786]
[1746675766051,5.32142248,1879.2,1878.7,12.97400563]
[1746675766221,5.32142248,1879.2,1878.8,0.05321517]
[1746675766222,5.32168166,1879.2,1878.8,0.05321517]
[1746675766562,5.32116429,1879.3,1878.8,5.32227767]
[1746675766853,5.3220406,1879.0,1878.7,7.598]
[1746675767012,0.8026,1879.5,1878.8,5.32248938]
[1746675767213,5.32143051,1879.2,1878.9,0.05321439]
[1746675767412,5.32171261,1879.1,1878.8,0.05321443]
[1746675768133,5.32195977,1879.1,1878.8,7.598]
[1746675768445,5.32156624,1879.2,1878.8,7.65121704]
[1746675768608,5.32127478,1879.3,1878.9,0.7651217]
[1746675768813,0.005,1879.8,1879.6,5.32014629]
[1746675769021,0.005,1879.8,1879.7,5.37319382]
[1746675769222,0.005,1879.8,1879.7,5.37318484]
[1746675769764,0.005,1879.8,1879.7,5.31999787]
[1746675769966,0.005,1879.8,1879.7,9.4371965]
[1746675770137,0.005,1879.8,1879.7,10.38102089]
[1746675770330,0.005,1879.8,1879.7,9.77783561]
[1746675770527,0.005,1879.8,1879.7,3.0]
[1746675770821,0.005,1879.8,1879.7,0.05318985]
[1746675770822,5.32471486,1879.8,1879.7,0.05318985]
[1746675771022,5.32005292,1879.7,1879.5,7.598]
[1746675771251,5.32028091,1879.6,1879.5,7.598]
[1746675771418,0.005,1879.8,1879.5,12.97174937]
[1746675771623,0.005,1879.8,1879.6,5.32027873]
[1746675771826,0.005,1879.8,1879.7,0.05319382]
[1746675772142,0.005,1879.8,1879.6,0.05319382]
[1746675772347,0.005,1879.8,1879.5,7.598]
[1746675772544,0.005,1879.8,1879.4,19.17]
[1746675772752,0.005,1879.8,1879.5,0.05320203]
[1746675772931,0.005,1879.8,1879.4,34.53784574]
[1746675773362,5.3247634,1879.8,1879.5,0.05319608]
[1746675773661,0.005,1879.8,1879.4,34.53784574]
[1746675773866,0.005,1879.8,1879.6,5.32022526]
[1746675774163,5.32471486,1879.8,1879.4,29.2171109]
[1746675774333,5.32056397,1879.5,1879.4,26.768]
[1746675774534,5.32036341,1879.6,1879.4,26.768]
[1746675774739,0.005,1879.8,1879.4,19.17]
[1746675774965,0.005,1879.8,1879.4,24.49068834]
[1746675775262,5.32473029,1879.8,1879.5,0.05319442]
[1746675775461,0.005,1879.8,1879.5,0.05319442]
[1746675775661,0.005,1879.8,1879.4,24.49068834]
[1746675775865,5.324779,1879.8,1879.4,24.49068834]
[1746675776025,5.32011502,1879.7,1879.4,19.17]
[1746675776230,5.32474588,1879.8,1879.4,19.17]
[1746675776553,5.32484872,1879.8,1879.5,0.05319954]
[1746675776737,0.005,1879.8,1879.4,19.17]
[1746675776933,5.32487146,1879.8,1879.4,19.17]
[1746675777136,5.32477816,1879.8,1879.4,24.49071387]
[1746675777538,10.64476227,1879.8,1879.4,19.17]
[1746675777724,10.64477355,1879.8,1879.4,19.17]
[1746675777925,5.32004273,1879.7,1879.4,19.17]
[1746675778128,0.005,1879.8,1879.4,19.17]
[1746675778323,5.32488631,1879.8,1879.4,19.17]
[1746675778640,5.32488631,1879.8,1879.4,24.49081709]
[1746675778641,0.005,1879.8,1879.4,24.49081709]
[1746675778975,5.32002673,1879.7,1879.4,19.17]
[1746675779481,5.32487588,1879.8,1879.4,19.17]
[1746675779664,5.32002483,1879.7,1879.4,19.17]
[1746675779868,10.64488585,1879.8,1879.4,19.17]
[1746675780066,5.32490812,1879.8,1879.4,19.17]
[1746675780248,5.32012144,1879.7,1879.4,19.17]
[1746675780448,0.005,1879.8,1879.5,5.32051782]
[1746675780652,0.005,1879.8,1879.5,0.0532012]
[1746675780987,0.005,1879.8,1879.5,6.1290222]
[1746675781150,0.005,1879.8,1879.7,5.31999787]
[1746675781679,0.005,1879.8,1879.7,8.9231866]
[1746675781868,0.005,1879.8,1879.7,11.12164391]
[1746675782073,0.005,1879.8,1879.7,11.06845518]
[1746675782670,0.005,1879.8,1879.7,15.27284963]
[1746675783774,0.005,1879.8,1879.7,9.07385731]
[1746675783977,0.005,1879.8,1879.7,20.37170788]
[1746675784185,0.005,1879.8,1879.7,14.99852822]
[1746675784384,0.005,1879.8,1879.7,7.649]
[1746675784591,0.7972,1880.4,1879.7,7.649]
[1746675784592,0.39106925,1881.5,1879.7,8.4585]
[1746675784897,0.7972,1881.4,1880.6,6.12690918]
[1746675785050,0.7972,1881.4,1880.8,3.0]
[1746675785252,0.7972,1881.4,1880.9,5.31643053]
[1746675785555,0.7972,1881.2,1880.2,3.0]
[1746675785759,0.7972,1880.7,1880.3,5.3714538]
[1746675785958,0.7972,1880.7,1880.3,0.05317361]
[1746675786272,0.7972,1880.7,1880.4,7.923]
[1746675786656,6.11460837,1880.7,1880.4,7.923]
[1746675786885,0.7972,1880.7,1880.0,0.55]
[1746675787086,0.7972,1880.7,1880.5,5.31762159]
[1746675787386,6.09661546,1881.0,1880.5,0.05316834]
[1746675787589,5.31739265,1880.7,1880.2,13.24144951]
[1746675788186,5.31745407,1880.6,1880.2,7.923]
[1746675788406,5.31754423,1880.6,1880.0,9.09587232]
[1746675788568,5.3180386,1880.4,1880.1,7.97517914]
[1746675788766,6.62979025,1880.5,1880.1,7.97517914]
[1746675789087,6.62979025,1880.5,1880.1,7.922]
[1746675789088,6.09789709,1880.5,1880.1,7.922]
[1746675789384,6.09802684,1880.5,1880.2,0.05317782]
[1746675789589,0.7801,1880.5,1880.2,0.05318041]
[1746675789788,5.31894843,1880.1,1879.8,0.05318299]
[1746675789958,5.31894843,1880.1,1879.8,7.97518299]
[1746675790155,5.31969503,1879.9,1879.4,5.32071565]
[1746675790355,5.31969503,1879.9,1879.5,7.922]
[1746675790588,5.31969503,1879.9,1879.5,13.24252945]
[1746675790791,0.8236,1880.3,1879.8,5.31970829]
[1746675790994,0.8236,1880.3,1879.6,5.32015526]
[1746675791193,6.14205969,1880.3,1879.8,5.31966978]
[1746675791387,0.8236,1880.3,1880.0,5.31890613]
[1746675791605,5.31757268,1880.6,1880.1,5.37193871]
[1746675791606,6.12627268,1880.6,1880.1,5.37193871]
[1746675792103,6.12633029,1880.6,1880.1,0.05318065]
[1746675792303,5.31784156,1880.5,1880.1,5.31873522]
[1746675792611,0.8087,1880.6,1880.1,1.90916876]
[1746675792916,0.8331,1880.9,1880.1,5.31886601]
[1746675793093,5.31436459,1881.7,1880.1,5.31886601]
[1746675793094,0.8331,1881.2,1880.9,5.31657854]
[1746675793294,0.8331,1881.2,1880.9,0.05315882]
[1746675793498,5.31614958,1881.1,1880.8,7.922]
[1746675793698,5.31660375,1880.9,1880.8,7.922]
[1746675793886,5.31660375,1880.9,1880.5,13.23970951]
[1746675794203,5.84842038,1880.9,1880.5,7.922]
[1746675794404,5.31648693,1881.0,1880.5,13.29276968]
[1746675794607,5.31648693,1881.0,1880.5,13.23951466]
[1746675794808,5.31648693,1881.0,1880.6,5.31740544]
[1746675795208,5.31648693,1881.0,1880.5,7.922]
[1746675795209,5.31665472,1880.9,1880.5,13.23961509]
[1746675795411,6.14897759,1881.2,1880.5,7.922]
[1746675795616,6.14906558,1881.2,1880.7,5.31705017]
[1746675795898,0.8331,1881.2,1880.5,7.922]
[1746675796097,6.14902607,1881.2,1880.7,5.31701066]
[1746675796608,0.8331,1881.2,1880.4,6.08]
[1746675796808,5.31692483,1880.8,1880.4,6.08]
[1746675796977,5.31723906,1880.7,1880.4,6.08]
[1746675797178,6.06819097,1880.6,1880.2,14.001]
[1746675797512,5.31773563,1880.5,1880.2,6.08]
[1746675797813,5.31856036,1880.3,1880.0,6.08]
[1746675798182,6.0680783,1880.6,1880.0,6.08]
[1746675798394,5.31817705,1880.4,1880.0,11.39902425]
[1746675798800,0.7506,1880.6,1880.0,11.39902425]
[1746675799024,5.31773464,1880.5,1880.0,11.39902425]
[1746675799192,5.31812215,1880.4,1880.0,11.39902425]
[1746675799518,5.31821087,1880.4,1880.0,6.08]
[1746675799818,0.60683346,1880.5,1880.0,6.08]
[1746675800022,5.31886601,1880.1,1880.0,6.08]
[1746675800239,5.31886601,1880.1,1879.9,7.922]
[1746675800593,6.10214531,1880.1,1879.8,6.08]
[1746675800791,5.31920993,1880.0,1879.8,6.08]
[1746675800992,5.31920993,1880.0,1879.6,6.08]
[1746675801189,5.31999691,1879.8,1879.6,6.08]
[1746675801398,5.31972413,1879.8,1879.5,7.922]
[1746675801702,5.31974275,1879.8,1879.4,11.40072256]
[1746675801902,5.31974275,1879.8,1879.4,13.07289344]
[1746675802411,6.10212643,1880.1,1879.5,0.05319935]
[1746675802610,5.31914893,1880.0,1879.5,5.32043991]
[1746675802794,5.31937644,1880.0,1879.5,5.32043991]
[1746675803134,6.10210028,1880.1,1879.7,5.31999466]
[1746675803436,6.10210028,1880.1,1879.6,5.32010379]
[1746675803596,1.92518118,1880.1,1879.4,12.15727304]
[1746675803796,5.32003246,1879.7,1879.4,6.08]
[1746675804392,5.31989023,1879.8,1879.4,6.08]
[1746675804716,6.10209205,1880.1,1879.6,5.32004208]
[1746675804913,6.10209205,1880.1,1879.7,5.3198851]
[1746675805097,6.10209205,1880.1,1879.6,5.32012472]
[1746675805297,6.10209205,1880.1,1879.6,17.78430469]
[1746675805495,6.10209205,1880.1,1879.7,5.31994852]
[1746675805838,5.31836881,1880.3,1879.9,5.31940286]
[1746675806133,5.31836881,1880.3,1879.8,5.37275589]
[1746675806293,5.31830027,1880.3,1879.8,5.37269626]
[1746675806509,10.63685639,1880.3,1879.8,7.20755061]
[1746675806707,5.31860498,1880.2,1879.8,7.20755061]
[1746675806992,5.31842611,1880.3,1879.9,5.31943066]
[1746675807395,6.65279206,1880.7,1880.1,5.31863338]
[1746675807610,5.31759147,1880.6,1880.2,5.37165022]
[1746675807808,5.31784963,1880.5,1880.1,11.39863338]